fUSD/lending_fUSD_20250505
["ID","MTS","AMOUNT","RATE_DAILY","PERIOD"]
[359919615,1746423043303,-153.0,0.00019948,2]
[359919616,1746423043311,-500.0,0.00019973,2]
[359919617,1746423043322,-743.2988889,0.00019986,2]
[359919618,1746423043331,-151.0,0.00019996,2]
[359919619,1746423043339,-200.0,0.00019996,2]
[359919620,1746423043349,-789.95,0.00019996,2]
[359919621,1746423043358,-789.95,0.00019996,2]
[359919622,1746423043368,-789.95,0.00019996,2]
[359919623,1746423043377,-450.0,0.00019996,2]
[359919624,1746423043387,-315.64978871,0.00019996,2]
[359919625,1746423043398,-376.25265725,0.00019996,2]
[359919626,1746423043407,-450.0,0.00019996,2]
[359919627,1746423043418,-450.0,0.00019996,2]
[359919628,1746423043428,-450.0,0.00019996,2]
[359919629,1746423043438,-660.49,0.00019996,2]
[359919630,1746423043447,-660.49,0.00019996,2]
[359919631,1746423043458,-660.49,0.00019996,2]
[359919632,1746423043467,-273.14369372,0.00019996,2]
[359919633,1746423043477,-450.0,0.00019996,2]
[359919634,1746423043487,-547.91038378,0.00019996,2]
[359919635,1746423043498,-450.0,0.00019996,2]
[359919636,1746423043507,-668.36,0.00019996,2]
[359919637,1746423043516,-668.36,0.00019996,2]
[359919638,1746423043526,-668.36,0.00019996,2]
[359919639,1746423043535,-450.0,0.00019996,2]
[359919640,1746423043545,-450.0,0.00019996,2]
[359919641,1746423043555,-333.02,0.00019996,2]
[359919642,1746423043564,-490.0,0.00019996,2]
[359919643,1746423043574,-753.01,0.00019996,2]
[359919644,1746423043583,-753.01,0.00019996,2]
[359919645,1746423043592,-753.01,0.00019996,2]
[359919646,1746423043601,-450.0,0.00019996,2]
[359919647,1746423043610,-450.0,0.00019996,2]
[359919648,1746423043619,-450.0,0.00019996,2]
[359919649,1746423043628,-450.0,0.00019996,2]
[359919650,1746423043638,-450.0,0.00019996,2]
[359919651,1746423043647,-450.0,0.00019996,2]
[359919652,1746423043657,-450.0,0.00019996,2]
[359919653,1746423043666,-949.1,0.00019996,2]
[359919654,1746423043675,-949.1,0.00019996,2]
[359919655,1746423043685,-949.1,0.00019996,2]
[359919656,1746423043694,-12839.2,0.00019996,2]
[359919657,1746423043703,-12839.2,0.00019996,2]
[359919658,1746423043712,-12839.2,0.00019996,2]
[359919659,1746423043721,-727.4,0.00019996,2]
[359919660,1746423043730,-727.4,0.00019996,2]
[359919661,1746423043740,-727.4,0.00019996,2]
[359919662,1746423043749,-3726.68,0.00019996,2]
[359919663,1746423043759,-3726.68,0.00019996,2]
[359919664,1746423043768,-3726.68,0.00019996,2]
[359919665,1746423043777,-450.0,0.00019996,2]
[359919666,1746423043786,-450.0,0.00019996,2]
[359919667,1746423043795,-450.0,0.00019996,2]
[359919668,1746423043805,-450.0,0.00019996,2]
[359919669,1746423043814,-435.05925388,0.00019996,2]
[359919670,1746423043823,-1345.08,0.00019996,2]
[359919671,1746423043832,-1345.08,0.00019996,2]
[359919672,1746423043842,-1345.08,0.00019996,2]
[359919673,1746423043851,-450.0,0.00019996,2]
[359919674,1746423043860,-450.0,0.00019996,2]
[359919675,1746423043869,-450.0,0.00019996,2]
[359919676,1746423043879,-450.0,0.00019996,2]
[359919677,1746423043889,-450.0,0.00019996,2]
[359919678,1746423043898,-450.0,0.00019996,2]
[359919679,1746423043908,-450.0,0.00019996,2]
[359919680,1746423043917,-450.0,0.00019996,2]
[359919681,1746423043927,-450.0,0.00019996,2]
[359919682,1746423043936,-496.36,0.00019996,2]
[359919683,1746423043946,-496.36,0.00019996,2]
[359919684,1746423043955,-496.36,0.00019996,2]
[359919685,1746423043965,-450.0,0.00019996,2]
[359919686,1746423043974,-450.0,0.00019996,2]
[359919687,1746423043983,-450.0,0.00019996,2]
[359919688,1746423043993,-527.05919274,0.00019996,2]
[359919689,1746423044003,-5501.38,0.00019996,2]
[359919690,1746423044013,-5501.38,0.00019996,2]
[359919691,1746423044023,-5501.38,0.00019996,2]
[359919692,1746423044033,-450.0,0.00019996,2]
[359919693,1746423044043,-450.0,0.00019996,2]
[359919694,1746423044053,-450.0,0.00019996,2]
[359919695,1746423044063,-500.0,0.00019996,2]
[359919696,1746423044072,-500.0,0.00019996,2]
[359919697,1746423044083,-500.0,0.00019996,2]
[359919698,1746423044093,-450.0,0.00019996,2]
[359919699,1746423044103,-450.0,0.00019996,2]
[359919700,1746423044113,-36183.41488242,0.00019997,2]
[359919701,1746423044122,-97680.83966878,0.00019997,2]
[359919703,1746423045500,-773.49567992,0.00019866,2]
[359919726,1746423050367,1337.0,0.000194,2]
[359919730,1746423082598,204.18,0.0003,30]
[359919731,1746423177566,500.32033219,0.0003,30]
[359919736,1746423248690,383.56,0.00017088,2]
[359919737,1746423248897,383.56,0.00019352,2]
[359919738,1746423263648,2083.49,0.0003,30]
[359919739,1746423316276,200.0,0.00019002,2]
[359919740,1746423591423,175.0,0.00019,2]
[359919741,1746423598970,301.0,0.00019,2]
[359919742,1746423674628,150.050514,0.0003,30]
[359919743,1746423709406,999.49,0.00019501,2]
[359919763,1746423960070,23900.0,0.00019024,2]
[359919764,1746424005672,250.0,0.00017,2]
[359919765,1746424006623,157.88228322,0.00019,2]
[359919766,1746424006646,142.11771678,0.00019,2]
[359919767,1746424025713,254.4,0.00019104,2]
[359919768,1746424029100,400.0,0.000191,6]
[359919769,1746424031200,205.0,0.000192,7]
[359919770,1746424031224,695.0,0.000192,7]
[359919771,1746424033313,1300.0,0.000193,7]
[359919777,1746424035414,1800.0,0.000194,7]
[359919778,1746424037513,2300.0,0.000195,7]
[359919797,1746424116212,216.64,0.00018931,2]
[359919800,1746424169798,500.0,0.00027945,30]
[359919801,1746424170028,500.0,0.00029315,35]
[359919803,1746424184088,1000.0,0.00018936,2]
[359919804,1746424197266,500.0,0.00027945,30]
[359919805,1746424197520,500.0,0.00029315,30]
[359919806,1746424212895,500.0,0.000195,2]
[359919814,1746424231798,-151.0,0.00019591,2]
[359919815,1746424231808,-200.0,0.00019592,2]
[359919816,1746424231817,-250.0,0.00019593,2]
[359919817,1746424231826,-1337.0,0.000196,2]
[359919818,1746424231836,-167.26154954,0.000196,2]
[359919819,1746424231846,-400.0,0.000196,7]
[359919820,1746424231858,-157.88228322,0.000197,2]
[359919821,1746424231868,-190.92447914,0.000197,7]
[359920135,1746424243017,-209.07552086,0.000197,7]
[359920136,1746424243028,-400.0,0.000198,7]
[359920137,1746424243038,-1337.0,0.000198,2]
[359920138,1746424243049,-207.4,0.00019888,2]
[359920139,1746424243060,-217.94947914,0.00019896,2]
[359920427,1746424272066,200.0,0.00019029,2]
[359920429,1746424291885,158.26,0.00019178,2]
[359920430,1746424483819,381.34,0.00017046,2]
[359920431,1746424484029,381.34,0.0001931,2]
[359920432,1746424630418,193.15956,0.0003,30]
[359920433,1746424656678,19774.79,0.0001895,2]
[359920454,1746424761722,500.0,0.00027945,30]
[359920456,1746424762034,500.0,0.00029315,35]
[359920468,1746424790266,500.0,0.00027945,30]
[359920469,1746424790512,500.0,0.00029315,30]
[359920482,1746424859241,1274.0,0.000194,2]
[359920483,1746424973216,5000.0,0.0003,32]
[359920484,1746425026211,2145.26,0.00018958,2]
[359920485,1746425064298,254.4,0.00019024,2]
[359920539,1746425290686,1000.0,0.00018951,2]
[359920559,1746425373368,500.0,0.00027945,30]
[359920560,1746425373601,500.0,0.00029315,30]
[359920579,1746425431942,-1274.0,0.000196,2]
[359920580,1746425431953,-250.0,0.0001965,2]
[359920581,1746425431963,-1274.0,0.000198,2]
[359920582,1746425431973,-207.4,0.00019885,2]
[359920583,1746425431982,-280.53024673,0.00019895,2]
[359920584,1746425432006,-19.46975327,0.00019895,2]
[359920585,1746425432016,-151.0,0.00019896,2]
[359920586,1746425432025,-246.0,0.00019896,2]
[359920587,1746425432035,-1200.0,0.00019896,2]
[359920588,1746425432044,-194.13,0.00019897,2]
[359920589,1746425432053,-426.98196753,0.00019897,2]
[359920590,1746425432065,-491.83945726,0.00019897,2]
[359920591,1746425432088,-302.33832724,0.00019897,2]
[359920592,1746425432098,-1221.15975203,0.00019897,2]
[359920593,1746425432107,-1221.15975203,0.00019898,2]
[359920594,1746425432116,-1221.15975203,0.00019898,2]
[359920595,1746425432125,-354.514,0.00019898,2]
[359920597,1746425432137,-1221.15975203,0.00019898,2]
[359920599,1746425432146,-1221.15975203,0.00019899,2]
[359920601,1746425432155,-913.8243005,0.00019899,2]
[359920603,1746425432164,-726.60419905,0.00019899,2]
[359920604,1746425432177,-494.55555298,0.00019899,2]
[359920606,1746425432186,-82.66624634,0.00019899,2]
[359920609,1746425432205,-831.15805416,0.00019899,2]
[359920610,1746425432215,-1221.15975203,0.00019899,2]
[359920612,1746425432225,-603.08245756,0.00019899,2]
[359921133,1746425437949,-151.0,0.00019899,2]
[359921134,1746425437959,-310.74184294,0.00019899,2]
[359921135,1746425437969,-1221.15975203,0.000199,2]
[359921136,1746425437978,-913.8243005,0.000199,2]
[359921137,1746425437988,-761.52,0.000199,2]
[359921138,1746425437997,-1221.15975203,0.000199,2]
[359921139,1746425438007,-913.8243005,0.000199,2]
[359921140,1746425438016,-194.39489005,0.000199,3]
[359921141,1746425438025,-300.0,0.00019918,7]
[359921142,1746425438035,-500.0,0.00019973,2]
[359921143,1746425438044,-9404.61746981,0.00019985,2]
[359921144,1746425438054,-3228.49875089,0.00019986,2]
[359921145,1746425438064,-460.8390741,0.00019986,2]
[359921146,1746425438073,-500.0,0.00019995,2]
[359921147,1746425438083,-500.0,0.00019995,2]
[359921148,1746425438092,-500.0,0.00019995,2]
[359921149,1746425438102,-211.9499379,0.00019995,2]
[359921150,1746425438111,-500.0,0.00019995,2]
[359921151,1746425438121,-500.0,0.00019995,2]
[359921152,1746425438131,-216.71694342,0.00019995,2]
[359921153,1746425438143,-780.0,0.00019996,2]
[359921154,1746425438153,-1000.0,0.00019996,2]
[359921155,1746425438162,-1000.0,0.00019996,2]
[359921156,1746425438172,-1000.0,0.00019996,2]
[359921157,1746425438183,-1000.0,0.00019996,2]
[359921158,1746425438192,-1000.0,0.00019996,2]
[359921159,1746425438201,-1000.0,0.00019996,2]
[359921160,1746425438211,-1000.0,0.00019996,2]
[359921161,1746425438221,-1000.0,0.00019996,2]
[359921162,1746425438230,-1000.0,0.00019996,2]
[359921163,1746425438239,-1000.0,0.00019996,2]
[359921164,1746425438249,-1000.0,0.00019996,2]
[359921165,1746425438258,-1000.0,0.00019996,2]
[359921166,1746425438267,-1000.0,0.00019996,2]
[359921167,1746425438276,-1000.0,0.00019996,2]
[359921168,1746425438285,-1000.0,0.00019996,2]
[359921169,1746425438294,-1000.0,0.00019996,2]
[359921170,1746425438303,-1000.0,0.00019996,2]
[359921171,1746425438312,-1000.0,0.00019996,2]
[359921173,1746425438321,-1000.0,0.00019996,2]
[359921175,1746425438331,-1000.0,0.00019996,2]
[359921177,1746425438339,-360.11850711,0.00019996,2]
[359921183,1746425438362,-639.88149289,0.00019996,2]
[359921186,1746425438371,-1000.0,0.00019996,2]
[359921189,1746425438379,-1000.0,0.00019996,2]
[359921192,1746425438388,-1000.0,0.00019996,2]
[359921195,1746425438398,-715.52265639,0.00019996,2]
[359921443,1746425440319,-284.47734361,0.00019996,2]
[359921446,1746425440328,-1000.0,0.00019996,2]
[359921449,1746425440337,-626.14686836,0.00019996,2]
[359921925,1746425445982,-373.85313164,0.00019996,2]
[359921927,1746425445992,-168.60686836,0.00019996,2]
[359921933,1746425446041,-831.39313164,0.00019996,2]
[359921935,1746425446051,-1000.0,0.00019996,2]
[359921937,1746425446060,-1000.0,0.00019996,2]
[359921939,1746425446070,-1000.0,0.00019996,2]
[359921941,1746425446079,-1000.0,0.00019996,2]
[359921943,1746425446089,-1000.0,0.00019996,2]
[359921945,1746425446099,-1000.0,0.00019996,2]
[359921947,1746425446108,-1000.0,0.00019996,2]
[359921949,1746425446117,-1000.0,0.00019996,2]
[359921951,1746425446127,-1000.0,0.00019996,2]
[359921953,1746425446138,-1000.0,0.00019996,2]
[359921955,1746425446148,-1000.0,0.00019996,2]
[359921957,1746425446157,-1000.0,0.00019996,2]
[359921959,1746425446166,-1000.0,0.00019996,2]
[359921961,1746425446176,-1000.0,0.00019996,2]
[359921962,1746425446185,-220.0,0.00019996,2]
[359921965,1746425446194,-450.0,0.00019996,2]
[359921967,1746425446205,-500.0,0.00019996,2]
[359921969,1746425446215,-500.0,0.00019996,2]
[359921971,1746425446225,-500.0,0.00019996,2]
[359921973,1746425446234,-500.0,0.00019996,2]
[359921975,1746425446243,-500.0,0.00019996,2]
[359921977,1746425446253,-500.0,0.00019996,2]
[359921979,1746425446262,-612.41370295,0.00019996,2]
[359921981,1746425446271,-1255.46,0.00019996,2]
[359921983,1746425446281,-1255.46,0.00019996,2]
[359921985,1746425446290,-450.0,0.00019996,2]
[359921987,1746425446300,-450.0,0.00019996,2]
[359921989,1746425446310,-450.0,0.00019996,2]
[359921991,1746425446319,-450.0,0.00019996,2]
[359921993,1746425446328,-450.0,0.00019996,2]
[359921995,1746425446337,-450.0,0.00019996,2]
[359921997,1746425446347,-450.0,0.00019996,2]
[359921999,1746425446356,-450.0,0.00019996,2]
[359922000,1746425446365,-495.95636684,0.00019996,2]
[359922002,1746425446374,-450.0,0.00019996,2]
[359922004,1746425446384,-450.0,0.00019996,2]
[359922006,1746425446392,-450.0,0.00019996,2]
[359922007,1746425446402,-339.31234558,0.00019996,2]
[359922008,1746425446411,-450.0,0.00019996,2]
[359922009,1746425446420,-431.51635601,0.00019996,2]
[359922010,1746425446430,-450.0,0.00019996,2]
[359922011,1746425446439,-450.0,0.00019996,2]
[359922012,1746425446448,-450.0,0.00019996,2]
[359922013,1746425446457,-450.0,0.00019996,2]
[359922015,1746425446466,-450.0,0.00019996,2]
[359922017,1746425446476,-450.0,0.00019996,2]
[359922019,1746425446486,-450.0,0.00019996,2]
[359922021,1746425446496,-450.0,0.00019996,2]
[359922023,1746425446504,-500.0,0.00019996,2]
[359922025,1746425446514,-500.0,0.00019996,2]
[359922027,1746425446523,-450.0,0.00019996,2]
[359922029,1746425446532,-450.0,0.00019996,2]
[359922031,1746425446541,-450.0,0.00019996,2]
[359922033,1746425446550,-4813.71,0.00019996,2]
[359922035,1746425446560,-4813.71,0.00019996,2]
[359922037,1746425446569,-450.0,0.00019996,2]
[359922039,1746425446579,-450.0,0.00019996,2]
[359922041,1746425446588,-553.84,0.00019996,2]
[359922043,1746425446598,-553.84,0.00019996,2]
[359922045,1746425446607,-584.82,0.00019996,2]
[359922047,1746425446616,-584.82,0.00019996,2]
[359922049,1746425446625,-658.89,0.00019996,2]
[359922051,1746425446635,-658.89,0.00019996,2]
[359922053,1746425446645,-450.0,0.00019996,2]
[359922055,1746425446655,-450.0,0.00019996,2]
[359922057,1746425446664,-450.0,0.00019996,2]
[359922059,1746425446673,-450.0,0.00019996,2]
[359922061,1746425446682,-636.47,0.00019996,2]
[359922063,1746425446692,-636.47,0.00019996,2]
[359922065,1746425446701,-922.76,0.00019996,2]
[359922067,1746425446712,-922.76,0.00019996,2]
[359922069,1746425446722,-3260.84,0.00019996,2]
[359922071,1746425446732,-3260.84,0.00019996,2]
[359922073,1746425446742,-450.0,0.00019996,2]
[359922075,1746425446752,-450.0,0.00019996,2]
[359922077,1746425446762,-11234.3,0.00019996,2]
[359922079,1746425446772,-11234.3,0.00019996,2]
[359922081,1746425446782,-450.0,0.00019996,2]
[359922100,1746425446960,-450.0,0.00019996,2]
[359922103,1746425446971,-1176.94,0.00019996,2]
[359922105,1746425446981,-307.63484509,0.00019996,2]
[359922256,1746425581786,9966.98,0.00019215,2]
[359922257,1746425593333,375.72,0.00017029,2]
[359922258,1746425593547,375.72,0.00019293,2]
[359922259,1746425630457,158.26,0.00019178,2]
[359922260,1746425829722,250.0,0.00017,2]
[359922261,1746425830784,300.0,0.00019,2]
[359922262,1746425848819,200.0,0.00019025,2]
[359922263,1746425852706,250.0,0.00019021,2]
[359922264,1746426257147,5000.0,0.0003,30]
[359922274,1746426392745,23900.0,0.00018959,2]
[359922285,1746426435497,205.0,9.8e-05,2]
[359922309,1746426603681,369.2,0.00017075,2]
[359922310,1746426603878,369.2,0.00019339,2]
[359922311,1746426614710,1755.6,0.0001892,2]
[359922323,1746426632307,-151.0,0.0001958,2]
[359922324,1746426632317,-250.0,0.0001958,2]
[359922325,1746426632326,-166.66,0.0001958,2]
[359922326,1746426632335,-150.0,0.00019726,2]
[359922327,1746426632344,-150.0,0.00019741,2]
[359922328,1746426632353,-150.0,0.00019759,2]
[359922329,1746426632363,-150.0,0.00019785,2]
[359922330,1746426632372,-1200.0,0.00019799,2]
[359922331,1746426632381,-3193.38761873,0.000198,5]
[359922332,1746426632390,-28998.94601774,0.000198,2]
[359922333,1746426632399,-150.0,0.00019808,2]
[359922334,1746426632408,-150.0,0.00019815,2]
[359922335,1746426632417,-188.89241004,0.00019831,2]
[359922336,1746426632428,-87.00873375,0.00019831,2]
[359922337,1746426632439,-605.54399545,0.0001988,2]
[359922338,1746426632457,-2274.08618175,0.0001988,2]
[359922339,1746426632468,-214.02937016,0.0001988,2]
[359922340,1746426632478,-207.4,0.00019885,2]
[359922341,1746426632487,-594.59287956,0.00019896,2]
[359922342,1746426632496,-594.59287952,0.00019896,2]
[359922343,1746426632506,-594.59287952,0.00019897,2]
[359922344,1746426632516,-163.1218295,0.00019897,2]
[359922345,1746426632525,-241.16608613,0.00019897,2]
[359922346,1746426632536,-353.42679339,0.00019897,2]
[359922347,1746426632545,-594.59287952,0.00019898,2]
[359922348,1746426632555,-594.59287952,0.00019898,2]
[359922349,1746426632564,-594.59287952,0.00019899,2]
[359922350,1746426632573,-594.59287952,0.00019899,2]
[359922351,1746426632582,-161.05327541,0.000199,2]
[359922352,1746426638412,-433.53960411,0.000199,2]
[359922353,1746426638422,-1105.50550719,0.000199,2]
[359922354,1746426638433,-2486.27231761,0.000199,2]
[359922355,1746426638442,-118.19648239,0.000199,2]
[359922356,1746426638453,-476.39639713,0.000199,2]
[359922357,1746426638463,-150.0,0.00019905,2]
[359922358,1746426638473,-150.0,0.00019911,2]
[359922359,1746426638483,-300.0,0.00019918,7]
[359922360,1746426638492,-150.0,0.00019962,2]
[359922361,1746426638501,-500.0,0.00019973,2]
[359922362,1746426638510,-150.0,0.00019975,2]
[359922363,1746426638520,-609.216,0.00019986,2]
[359922364,1746426638529,-355.2301196,0.00019986,2]
[359922365,1746426638539,-150.0,0.00019986,2]
[359922366,1746426638548,-15987.55748327,0.0001999,2]
[359922367,1746426638563,-328.06070988,0.0001999,2]
[359922368,1746426638575,-494.88701655,0.0001999,2]
[359922369,1746426638590,-2101.14,0.0001999,2]
[359922370,1746426638601,-1834.99999993,0.0001999,2]
[359922371,1746426638612,-740.1000001,0.0001999,2]
[359922372,1746426638623,-476.33,0.0001999,2]
[359922519,1746426640314,-432.42541067,0.0001999,2]
[359922548,1746426640586,-979.16171516,0.0001999,2]
[359922817,1746426643254,-2314.23955241,0.0001999,2]
[359923266,1746426650318,-4493.26786903,0.0001999,2]
[359923267,1746426650328,-500.0,0.00019994,2]
[359923268,1746426650337,-500.0,0.00019994,2]
[359923269,1746426650346,-500.0,0.00019994,2]
[359923270,1746426650356,-500.0,0.00019994,2]
[359923271,1746426650366,-308.50799382,0.00019994,2]
[359923272,1746426650375,-500.0,0.00019994,2]
[359923273,1746426650385,-500.0,0.00019994,2]
[359923274,1746426650394,-500.0,0.00019994,2]
[359923275,1746426650404,-500.0,0.00019994,2]
[359923276,1746426650413,-151.0,0.00019996,2]
[359923277,1746426650422,-200.0,0.00019996,2]
[359923278,1746426650432,-200.0,0.00019996,2]
[359923279,1746426650441,-1150.83,0.00019996,2]
[359923280,1746426650450,-1150.83,0.00019996,2]
[359923281,1746426650593,-450.0,0.00019996,2]
[359923282,1746426650604,-264.61742727,0.00019996,2]
[359923283,1746426650613,-531.77,0.00019996,2]
[359923284,1746426650622,-531.77,0.00019996,2]
[359923285,1746426650632,-450.0,0.00019996,2]
[359923286,1746426650642,-450.0,0.00019996,2]
[359923287,1746426650652,-381.2330056,0.00019996,2]
[359923288,1746426650662,-500.0,0.00019996,2]
[359923289,1746426650672,-500.0,0.00019996,2]
[359923290,1746426650684,-603.98,0.00019996,2]
[359923291,1746426650694,-603.98,0.00019996,2]
[359923292,1746426650703,-450.0,0.00019996,2]
[359923293,1746426650712,-450.0,0.00019996,2]
[359923294,1746426650722,-450.0,0.00019996,2]
[359923295,1746426650731,-450.0,0.00019996,2]
[359923296,1746426650741,-237.260429,0.00019996,2]
[359923297,1746426650751,-151.0,0.00019996,2]
[359923298,1746426650760,-583.43,0.00019996,2]
[359923299,1746426650770,-583.43,0.00019996,2]
[359923300,1746426650780,-10298.11,0.00019996,2]
[359923301,1746426650790,-10298.11,0.00019996,2]
[359923302,1746426650800,-845.86,0.00019996,2]
[359923303,1746426650809,-845.86,0.00019996,2]
[359923304,1746426650819,-2989.11,0.00019996,2]
[359923305,1746426650829,-2989.11,0.00019996,2]
[359923306,1746426650838,-513.47028672,0.00019996,2]
[359923307,1746426650847,-151.0,0.00019996,2]
[359923308,1746426650858,-450.0,0.00019996,2]
[359923309,1746426650867,-450.0,0.00019996,2]
[359923310,1746426650876,-450.0,0.00019996,2]
[359923311,1746426650886,-450.0,0.00019996,2]
[359923312,1746426650895,-450.0,0.00019996,2]
[359923313,1746426650904,-450.0,0.00019996,2]
[359923314,1746426650913,-1115.08,0.00019996,2]
[359923315,1746426650923,-1115.08,0.00019996,2]
[359923316,1746426650932,-450.0,0.00019996,2]
[359923317,1746426650942,-450.0,0.00019996,2]
[359923318,1746426650951,-450.0,0.00019996,2]
[359923319,1746426650961,-450.0,0.00019996,2]
[359923320,1746426650970,-450.0,0.00019996,2]
[359923321,1746426650980,-450.0,0.00019996,2]
[359923322,1746426650989,-450.0,0.00019996,2]
[359923323,1746426650999,-4412.56,0.00019996,2]
[359923324,1746426651008,-4412.56,0.00019996,2]
[359923325,1746426651018,-255.37499985,0.00019996,2]
[359923326,1746426651028,-450.0,0.00019996,2]
[359923327,1746426651037,-450.0,0.00019996,2]
[359923328,1746426651047,-536.08,0.00019996,2]
[359923329,1746426651056,-536.08,0.00019996,2]
[359923330,1746426651066,-151.0,0.00019996,2]
[359923331,1746426651075,-535.33318282,0.00019996,2]
[359923332,1746426651085,-2351.15436745,0.00019997,2]
[359923333,1746426651094,-472820.62878486,0.00019997,2]
[359923334,1746426651104,-151.0,0.00019997,2]
[359923335,1746426651113,-153.569969,0.00019997,2]
[359923336,1746426651123,-1150.83,0.00019998,2]
[359923337,1746426651132,-1150.83,0.00019998,2]
[359923338,1746426651142,-531.77,0.00019998,2]
[359923339,1746426651151,-531.77,0.00019998,2]
[359923340,1746426651161,-450.0,0.00019998,2]
[359923341,1746426651170,-250.0,0.00019998,2]
[359923342,1746426651179,-500.0,0.00019998,2]
[359923343,1746426651189,-500.0,0.00019998,2]
[359923344,1746426651199,-603.98,0.00019998,2]
[359923345,1746426651209,-603.98,0.00019998,2]
[359923346,1746426651218,-450.0,0.00019998,2]
[359923347,1746426651228,-450.0,0.00019998,2]
[359923348,1746426651237,-450.0,0.00019998,2]
[359923349,1746426651247,-450.0,0.00019998,2]
[359923350,1746426651256,-151.0,0.00019998,2]
[359923351,1746426651266,-151.0,0.00019998,2]
[359923352,1746426651276,-583.43,0.00019998,2]
[359923353,1746426651286,-583.43,0.00019998,2]
[359923354,1746426651296,-10298.11,0.00019998,2]
[359923355,1746426651306,-10298.11,0.00019998,2]
[359923356,1746426651315,-845.86,0.00019998,2]
[359923357,1746426651325,-845.86,0.00019998,2]
[359923358,1746426651334,-2989.11,0.00019998,2]
[359923359,1746426651344,-2989.11,0.00019998,2]
[359923360,1746426651353,-450.0,0.00019998,2]
[359923361,1746426651363,-450.0,0.00019998,2]
[359923362,1746426651372,-450.0,0.00019998,2]
[359923363,1746426651381,-450.0,0.00019998,2]
[359923364,1746426651391,-182.46093999,0.00019998,2]
[359923365,1746426651402,-1115.08,0.00019998,2]
[359923366,1746426651411,-1115.08,0.00019998,2]
[359923367,1746426651421,-450.0,0.00019998,2]
[359923368,1746426651431,-312.1911067,0.00019998,2]
[359923369,1746426651441,-450.0,0.00019998,2]
[359923370,1746426651450,-450.0,0.00019998,2]
[359923371,1746426651459,-450.0,0.00019998,2]
[359923372,1746426651469,-450.0,0.00019998,2]
[359923373,1746426651479,-4412.56,0.00019998,2]
[359923374,1746426651488,-4412.56,0.00019998,2]
[359923375,1746426651498,-450.0,0.00019998,2]
[359923376,1746426651508,-450.0,0.00019998,2]
[359923377,1746426651518,-536.08,0.00019998,2]
[359923378,1746426651527,-536.08,0.00019998,2]
[359923379,1746426651537,-617.0,0.00019999,2]
[359923380,1746426651547,-7694.48426457,0.00019999,2]
[359923381,1746426651556,-1150.83,0.00019999,2]
[359923382,1746426651566,-1150.83,0.00019999,2]
[359923383,1746426651576,-1150.83,0.00019999,2]
[359923384,1746426651586,-1150.83,0.00019999,2]
[359923385,1746426651596,-1150.83,0.00019999,2]
[359923386,1746426651606,-1150.83,0.00019999,2]
[359923387,1746426651615,-1150.83,0.00019999,2]
[359923388,1746426651625,-1150.83,0.00019999,2]
[359923389,1746426651635,-1150.83,0.00019999,2]
[359923390,1746426651645,-1150.83,0.00019999,2]
[359923391,1746426651654,-1150.83,0.00019999,2]